fUSD/lending_fUSD_20240225
["ID","MTS","AMOUNT","RATE_DAILY","PERIOD"]
[315153948,1708893043933,-500.0,0.00023879,2]
[315153949,1708893043942,-500.0,0.00023879,2]
[315153950,1708893043952,-500.0,0.00023879,2]
[315153951,1708893043961,-500.0,0.00023879,2]
[315153952,1708893043970,-500.0,0.00023879,2]
[315153953,1708893043979,-259.56,0.00023879,2]
[315153954,1708893043988,-500.0,0.00023879,2]
[315153955,1708893043998,-500.0,0.00023879,2]
[315153956,1708893044007,-500.0,0.00023879,2]
[315153957,1708893044017,-500.0,0.00023879,2]
[315153958,1708893044027,-500.0,0.00023879,2]
[315153959,1708893044036,-574.74,0.00023879,2]
[315153960,1708893044045,-500.0,0.00023879,2]
[315153961,1708893044055,-500.0,0.00023879,2]
[315153962,1708893044064,-500.0,0.00023879,2]
[315153963,1708893044074,-226.81,0.00023879,2]
[315153964,1708893044083,-500.0,0.00023879,2]
[315153966,1708893044092,-500.0,0.00023879,2]
[315153968,1708893044101,-602.03527859,0.00023879,2]
[315153970,1708893044110,-241.77,0.00023879,2]
[315153972,1708893044120,-537.27,0.00023879,2]
[315153974,1708893044129,-500.0,0.00023879,2]
[315153976,1708893044138,-500.0,0.00023879,2]
[315153978,1708893044148,-500.0,0.00023879,2]
[315153980,1708893044157,-500.0,0.00023879,2]
[315153982,1708893044166,-500.0,0.00023879,2]
[315153984,1708893044175,-500.0,0.00023879,2]
[315153986,1708893044184,-500.0,0.00023879,2]
[315153988,1708893044193,-500.0,0.00023879,2]
[315153990,1708893044202,-500.0,0.00023879,2]
[315153992,1708893044212,-500.0,0.00023879,2]
[315153994,1708893044221,-500.0,0.00023879,2]
[315153996,1708893044230,-500.0,0.00023879,2]
[315153998,1708893044239,-500.0,0.00023879,2]
[315154000,1708893044248,-500.0,0.00023879,2]
[315154002,1708893044258,-500.0,0.00023879,2]
[315154004,1708893044267,-343.1,0.00023879,2]
[315154006,1708893044280,-500.0,0.00023879,2]
[315154008,1708893044289,-500.0,0.00023879,2]
[315154010,1708893044299,-500.0,0.00023879,2]
[315154012,1708893044308,-353.76095027,0.00023879,2]
[315154014,1708893044318,-500.0,0.00023879,2]
[315154016,1708893044327,-150.32,0.00023879,2]
[315154018,1708893044336,-500.0,0.00023879,2]
[315154020,1708893044345,-500.0,0.00023879,2]
[315154022,1708893044354,-500.0,0.00023879,2]
[315154024,1708893044363,-500.0,0.00023879,2]
[315154026,1708893044375,-500.0,0.00023879,2]
[315154028,1708893044384,-345.6433653,0.00023879,2]
[315154030,1708893044394,-500.0,0.00023879,2]
[315154032,1708893044403,-500.0,0.00023879,2]
[315154034,1708893044413,-500.0,0.00023879,2]
[315154036,1708893044423,-500.0,0.00023879,2]
[315154038,1708893044432,-500.0,0.00023879,2]
[315154040,1708893044441,-527.74,0.00023879,2]
[315154042,1708893044451,-500.0,0.00023879,2]
[315154044,1708893044460,-500.0,0.00023879,2]
[315154046,1708893044469,-500.0,0.00023879,2]
[315154048,1708893044479,-343.35475855,0.00023879,2]
[315154050,1708893044489,-500.0,0.00023879,2]
[315154052,1708893044498,-500.0,0.00023879,2]
[315154054,1708893044507,-500.0,0.00023879,2]
[315154056,1708893044516,-258.44375839,0.00023879,2]
[315154059,1708893044528,-241.55624161,0.00023879,2]
[315154061,1708893044537,-500.0,0.00023879,2]
[315154063,1708893044546,-500.0,0.00023879,2]
[315154065,1708893044555,-271.70723899,0.00023879,2]
[315154073,1708893044620,-319.25276101,0.00023879,2]
[315154075,1708893044629,-343.45358815,0.00023879,2]
[315154077,1708893044639,-156.54641185,0.00023879,2]
[315154079,1708893044649,-804.01,0.00023879,2]
[315154081,1708893044658,-1816.79,0.00023879,2]
[315154083,1708893044667,-1726.82,0.00023879,2]
[315154085,1708893044677,-500.0,0.00023879,2]
[315154087,1708893044686,-512.66,0.00023879,2]
[315154089,1708893044697,-500.0,0.00023879,2]
[315154091,1708893044706,-500.0,0.00023879,2]
[315154093,1708893044715,-3347.99,0.00023879,2]
[315154095,1708893044725,-500.0,0.00023879,2]
[315154097,1708893044734,-500.0,0.00023879,2]
[315154099,1708893044743,-500.0,0.00023879,2]
[315154101,1708893044752,-500.0,0.00023879,2]
[315154103,1708893044761,-1280.3,0.00023879,2]
[315154105,1708893044770,-500.0,0.00023879,2]
[315154107,1708893044779,-500.0,0.00023879,2]
[315154109,1708893044788,-500.0,0.00023879,2]
[315154111,1708893044797,-981.43,0.00023879,2]
[315154134,1708893044995,-500.0,0.00023879,2]
[315154136,1708893045005,-500.0,0.00023879,2]
[315154138,1708893045015,-843.7,0.00023879,2]
[315154140,1708893045024,-4807.91,0.00023879,2]
[315154142,1708893045034,-500.0,0.00023879,2]
[315154144,1708893045043,-500.0,0.00023879,2]
[315154146,1708893045052,-42789.81228612,0.0002388,10]
[315154148,1708893045064,-2689.91473179,0.0002388,10]
[315154151,1708893045075,-1731.56,0.0002388,10]
[315154153,1708893045091,-55977.53972166,0.0002388,10]
[315154155,1708893045100,-726.0106891,0.00023894,2]
[315154157,1708893045109,-726.010689,0.00023895,2]
[315154159,1708893045118,-11423.82672847,0.00023895,2]
[315154161,1708893045128,-726.010689,0.00023895,2]
[315154163,1708893045137,-726.010689,0.00023896,2]
[315154165,1708893045146,-726.010689,0.00023896,2]
[315154167,1708893045155,-726.010689,0.00023897,2]
[315154169,1708893045165,-726.010689,0.00023897,2]
[315154171,1708893045173,-726.010689,0.00023898,2]
[315154173,1708893045183,-500.0,0.00023898,2]
[315154175,1708893045191,-500.0,0.00023898,2]
[315154177,1708893045201,-726.010689,0.00023898,2]
[315154179,1708893045210,-726.010689,0.00023899,2]
[315154181,1708893045219,-158.05909155,0.00023899,2]
[315154183,1708893045228,-180.78990483,0.00023899,2]
[315154185,1708893045237,-3652.60488744,0.00023899,2]
[315154187,1708893045246,-726.010689,0.00023899,2]
[315154189,1708893045255,-3652.60488742,0.000239,2]
[315154191,1708893045264,-9950.67294561,0.000239,2]
[315154193,1708893045274,-726.010689,0.000239,2]
[315154195,1708893045283,-693.85279923,0.000239,2]
[315154197,1708893045294,-679.02085383,0.000239,8]
[315154199,1708893045303,-3652.60488742,0.000239,2]
[315154201,1708893045312,-155.07,0.00023931,2]
[315154203,1708893045321,-153.0,0.00023945,2]
[315154205,1708893045330,-586.0,0.00023945,2]
[315154207,1708893045340,-153.0,0.00023945,2]
[315154209,1708893045349,-150.02,0.00023953,2]
[315154211,1708893045359,-240.506,0.00023977,2]
[315154213,1708893045368,-2119.81,0.00023989,2]
[315154215,1708893045380,-500.0,0.00023989,2]
[315154217,1708893045389,-500.0,0.00023989,2]
[315154219,1708893045398,-1963.53,0.00023989,2]
[315154221,1708893045407,-1932.11,0.00023989,2]
[315154223,1708893045416,-322.0,0.0002399,2]
[315154225,1708893045425,-2742.469,0.0002399,2]
[315154227,1708893045434,-316.583,0.0002399,2]
[315154229,1708893045443,-2508.963,0.0002399,2]
[315154231,1708893045452,-165.019,0.0002399,2]
[315154233,1708893045461,-162.0,0.0002399,2]
[315154235,1708893045471,-298.0,0.0002399,2]
[315154238,1708893045480,-390.0,0.0002399,2]
[315154240,1708893045490,-226.207,0.0002399,2]
[315154242,1708893045499,-7439.0,0.0002399,2]
[315154244,1708893045508,-8187.0,0.0002399,2]
[315154246,1708893045518,-2935.0,0.0002399,2]
[315154248,1708893045527,-553.45203134,0.0002399,2]
[315154250,1708893045536,-500.0,0.00023991,2]
[315154251,1708893045545,-500.0,0.00023991,2]
[315154253,1708893045554,-500.0,0.00023991,2]
[315154255,1708893045563,-500.0,0.00023993,2]
[315154257,1708893045572,-804.01,0.00023993,2]
[315154259,1708893045581,-1816.79,0.00023993,2]
[315154261,1708893045590,-1726.82,0.00023993,2]
[315154263,1708893045599,-500.0,0.00023993,2]
[315154265,1708893045609,-512.66,0.00023993,2]
[315154267,1708893045618,-500.0,0.00023993,2]
[315154269,1708893045628,-500.0,0.00023993,2]
[315154271,1708893045637,-3347.99,0.00023993,2]
[315154273,1708893045647,-500.0,0.00023993,2]
[315154275,1708893045656,-500.0,0.00023993,2]
[315154277,1708893045665,-500.0,0.00023993,2]
[315154279,1708893045674,-500.0,0.00023993,2]
[315154281,1708893045683,-500.0,0.00023993,2]
[315154283,1708893045692,-1280.3,0.00023993,2]
[315154285,1708893045702,-500.0,0.00023993,2]
[315154287,1708893045711,-500.0,0.00023993,2]
[315154289,1708893045720,-2119.81,0.00023993,2]
[315154291,1708893045729,-500.0,0.00023993,2]
[315154293,1708893045738,-500.0,0.00023993,2]
[315154295,1708893045748,-500.0,0.00023993,2]
[315154297,1708893045757,-500.0,0.00023993,2]
[315154299,1708893045767,-500.0,0.00023993,2]
[315154301,1708893045777,-981.43,0.00023993,2]
[315154303,1708893045786,-500.0,0.00023993,2]
[315154305,1708893045796,-500.0,0.00023993,2]
[315154307,1708893045805,-500.0,0.00023993,2]
[315154309,1708893045814,-1963.53,0.00023993,2]
[315154311,1708893045823,-1932.11,0.00023993,2]
[315154313,1708893045832,-500.0,0.00023993,2]
[315154315,1708893045842,-843.7,0.00023993,2]
[315154317,1708893045853,-4807.91,0.00023993,2]
[315154319,1708893045863,-500.0,0.00023993,2]
[315154321,1708893045872,-205.68266785,0.00023993,2]
[315154323,1708893045882,-500.0,0.00023993,2]
[315154325,1708893045891,-500.0,0.00023994,2]
[315154327,1708893045901,-494.76,0.00023994,2]
[315154329,1708893045910,-500.0,0.00023994,2]
[315154331,1708893045919,-500.0,0.00023994,2]
[315154333,1708893045928,-500.0,0.00023994,2]
[315154335,1708893045937,-500.0,0.00023994,2]
[315154337,1708893045947,-500.0,0.00023994,2]
[315154339,1708893045956,-677.97,0.00023994,2]
[315154341,1708893045965,-677.97,0.00023994,2]
[315154343,1708893045974,-677.97,0.00023994,2]
[315154345,1708893045983,-500.0,0.00023994,2]
[315154347,1708893045992,-500.0,0.00023994,2]
[315154349,1708893046001,-500.0,0.00023994,2]
[315154351,1708893046010,-501.05,0.00023994,2]
[315154353,1708893046019,-501.05,0.00023994,2]
[315154355,1708893046028,-501.05,0.00023994,2]
[315154357,1708893046037,-500.0,0.00023994,2]
[315154359,1708893046047,-500.0,0.00023994,2]
[315154361,1708893046056,-500.0,0.00023994,2]
[315154363,1708893046065,-500.0,0.00023994,2]
[315154365,1708893046074,-500.0,0.00023994,2]
[315154367,1708893046083,-512.42834542,0.00023994,2]
[315154369,1708893046092,-500.0,0.00023994,2]
[315154371,1708893046102,-500.0,0.00023994,2]
[315154373,1708893046111,-500.0,0.00023994,2]
[315154375,1708893046121,-500.0,0.00023994,2]
[315154377,1708893046131,-500.0,0.00023994,2]
[315154380,1708893046140,-696.07,0.00023994,2]
[315154382,1708893046149,-500.0,0.00023994,2]
[315154384,1708893046158,-696.07,0.00023994,2]
[315154386,1708893046167,-696.07,0.00023994,2]
[315154388,1708893046176,-500.0,0.00023994,2]
[315154390,1708893046185,-500.0,0.00023994,2]
[315154392,1708893046194,-500.0,0.00023994,2]
[315154393,1708893046203,-500.0,0.00023994,2]
[315154395,1708893046212,-500.0,0.00023994,2]
[315154396,1708893046221,-500.0,0.00023994,2]
[315154397,1708893046230,-500.0,0.00023994,2]
[315154398,1708893046239,-500.0,0.00023994,2]
[315154399,1708893046248,-500.0,0.00023994,2]
[315154400,1708893046257,-684.71,0.00023994,2]
[315154402,1708893046266,-684.71,0.00023994,2]
[315154403,1708893046277,-684.71,0.00023994,2]
[315154405,1708893046287,-500.0,0.00023994,2]
[315154407,1708893046296,-500.0,0.00023994,2]
[315154408,1708893046305,-500.0,0.00023994,2]
[315154410,1708893046314,-160.66986604,0.00023994,2]
[315154412,1708893046325,-804.01,0.00023994,2]
[315154414,1708893046334,-804.01,0.00023994,2]
[315154416,1708893046343,-804.01,0.00023994,2]
[315154418,1708893046352,-500.0,0.00023994,2]
[315154420,1708893046364,-500.0,0.00023994,2]
[315154422,1708893046373,-500.0,0.00023994,2]
[315154424,1708893046382,-500.0,0.00023994,2]
[315154426,1708893046391,-500.0,0.00023994,2]
[315154428,1708893046400,-500.0,0.00023994,2]
[315154430,1708893046409,-1816.79,0.00023994,2]
[315154432,1708893046419,-1816.79,0.00023994,2]
[315154434,1708893046428,-1816.79,0.00023994,2]
[315154436,1708893046437,-1726.82,0.00023994,2]
[315154438,1708893046447,-1726.82,0.00023994,2]
[315154440,1708893046456,-1726.82,0.00023994,2]
[315154442,1708893046465,-781.86,0.00023994,2]
[315154445,1708893046475,-781.86,0.00023994,2]
[315154446,1708893046484,-781.86,0.00023994,2]
[315154448,1708893046493,-500.0,0.00023994,2]
[315154451,1708893046503,-278.88,0.00023994,2]
[315154452,1708893046513,-500.0,0.00023994,2]
[315154455,1708893046522,-500.0,0.00023994,2]
[315154457,1708893046532,-500.0,0.00023994,2]
[315154459,1708893046541,-512.66,0.00023994,2]
[315154460,1708893046550,-512.66,0.00023994,2]
[315154462,1708893046559,-512.66,0.00023994,2]
[315154464,1708893046568,-500.0,0.00023994,2]
[315154466,1708893046577,-560.92,0.00023994,2]
[315154469,1708893046587,-500.0,0.00023994,2]
[315154470,1708893046596,-560.92,0.00023994,2]
[315154473,1708893046606,-500.0,0.00023994,2]
[315154475,1708893046615,-500.0,0.00023994,2]
[315154477,1708893046624,-560.92,0.00023994,2]
[315154478,1708893046634,-500.0,0.00023994,2]
[315154480,1708893046643,-500.0,0.00023994,2]
[315154483,1708893046653,-154.12,0.00023994,2]
[315154485,1708893046662,-1187.42,0.00023994,2]
[315154487,1708893046672,-1187.42,0.00023994,2]
[315154489,1708893046681,-1187.42,0.00023994,2]
[315154491,1708893046690,-500.0,0.00023994,2]
[315154493,1708893046699,-500.0,0.00023994,2]
[315154495,1708893046708,-500.0,0.00023994,2]
[315154497,1708893046717,-500.0,0.00023994,2]
[315154499,1708893046727,-500.0,0.00023994,2]
[315154501,1708893046736,-500.0,0.00023994,2]
[315154503,1708893046746,-500.0,0.00023994,2]
[315154505,1708893046755,-3347.99,0.00023994,2]
[315154507,1708893046765,-3347.99,0.00023994,2]
[315154509,1708893046774,-3347.99,0.00023994,2]
[315154511,1708893046783,-500.0,0.00023994,2]
[315154513,1708893046793,-500.0,0.00023994,2]
[315154515,1708893046802,-500.0,0.00023994,2]
[315154517,1708893046811,-500.0,0.00023994,2]
[315154518,1708893046820,-444.08,0.00023994,2]
[315154520,1708893046830,-500.0,0.00023994,2]
[315154522,1708893046839,-500.0,0.00023994,2]
[315154525,1708893046849,-500.0,0.00023994,2]
[315154526,1708893046858,-500.0,0.00023994,2]
[315154529,1708893046868,-500.0,0.00023994,2]
[315154530,1708893046878,-500.0,0.00023994,2]
[315154532,1708893046888,-372.04062002,0.00023994,2]
[315154535,1708893046897,-500.0,0.00023994,2]
[315154537,1708893046907,-500.0,0.00023994,2]
[315154539,1708893046917,-500.0,0.00023994,2]
[315154541,1708893046926,-500.0,0.00023994,2]
[315154543,1708893046937,-500.0,0.00023994,2]
[315154545,1708893046946,-500.0,0.00023994,2]
[315154547,1708893046956,-500.0,0.00023994,2]
[315154549,1708893046965,-500.0,0.00023994,2]
[315154551,1708893046974,-500.0,0.00023994,2]
[315154553,1708893046983,-547.74,0.00023994,2]
[315154555,1708893046992,-547.74,0.00023994,2]
[315154557,1708893047001,-547.74,0.00023994,2]
[315154559,1708893047011,-500.0,0.00023994,2]
[315154561,1708893047020,-500.0,0.00023994,2]
[315154563,1708893047029,-500.0,0.00023994,2]
[315154565,1708893047038,-500.0,0.00023994,2]
[315154567,1708893047047,-500.0,0.00023994,2]
[315154569,1708893047057,-500.0,0.00023994,2]
[315154570,1708893047065,-500.0,0.00023994,2]
[315154571,1708893047075,-500.0,0.00023994,2]
[315154573,1708893047084,-1280.3,0.00023994,2]
[315154574,1708893047097,-1280.3,0.00023994,2]
[315154575,1708893047106,-1280.3,0.00023994,2]
[315154576,1708893047115,-500.0,0.00023994,2]
[315154577,1708893047125,-2119.81,0.00023994,2]
[315154578,1708893047135,-597.29885799,0.00023994,2]
[315154579,1708893047144,-500.0,0.00023994,2]
[315154580,1708893047153,-500.0,0.00023994,2]
[315154581,1708893047163,-500.0,0.00023994,2]
[315154582,1708893047172,-500.0,0.00023994,2]
[315154583,1708893047182,-500.0,0.00023994,2]
[315154584,1708893047191,-500.0,0.00023994,2]
[315154585,1708893047200,-227.29390629,0.00023994,2]
[315154586,1708893047209,-500.0,0.00023994,2]
[315154587,1708893047218,-500.0,0.00023994,2]
[315154588,1708893047226,-500.0,0.00023994,2]
[315154589,1708893047235,-341.74129174,0.00023994,2]
[315154590,1708893047244,-534.65,0.00023994,2]
[315154591,1708893047253,-1097.5,0.00023994,2]
[315154592,1708893047262,-534.65,0.00023994,2]
[315154593,1708893047271,-1097.5,0.00023994,2]
[315154594,1708893047281,-1097.5,0.00023994,2]
[315154595,1708893047291,-534.65,0.00023994,2]
[315154596,1708893047301,-500.0,0.00023994,2]
[315154597,1708893047310,-500.0,0.00023994,2]
[315154598,1708893047319,-500.0,0.00023994,2]
[315154599,1708893047329,-500.0,0.00023994,2]
[315154600,1708893047338,-499.56487892,0.00023994,2]
[315154601,1708893047347,-500.0,0.00023994,2]
[315154602,1708893047356,-500.0,0.00023994,2]
[315154603,1708893047365,-500.0,0.00023994,2]
[315154604,1708893047376,-500.0,0.00023994,2]
[315154605,1708893047385,-2337.15,0.00023994,2]
[315154606,1708893047394,-2337.15,0.00023994,2]
[315154607,1708893047403,-2337.15,0.00023994,2]
[315154608,1708893047412,-981.43,0.00023994,2]
[315154609,1708893047422,-981.43,0.00023994,2]
[315154610,1708893047431,-981.43,0.00023994,2]
[315154611,1708893047440,-500.0,0.00023994,2]
[315154612,1708893047449,-500.0,0.00023994,2]
[315154613,1708893047457,-500.0,0.00023994,2]
[315154614,1708893047466,-257.05226148,0.00023994,2]
[315154615,1708893047475,-556.09,0.00023994,2]
[315154616,1708893047484,-556.09,0.00023994,2]
[315154617,1708893047493,-556.09,0.00023994,2]
[315154618,1708893047502,-500.0,0.00023994,2]
[315154619,1708893047511,-500.0,0.00023994,2]
[315154620,1708893047520,-500.0,0.00023994,2]
[315154621,1708893047529,-500.0,0.00023994,2]
[315154622,1708893047538,-500.0,0.00023994,2]
[315154623,1708893047547,-500.0,0.00023994,2]
[315154624,1708893047556,-500.0,0.00023994,2]
[315154625,1708893047565,-500.0,0.00023994,2]
[315154626,1708893047574,-500.0,0.00023994,2]
[315154627,1708893047583,-500.0,0.00023994,2]
[315154628,1708893047593,-500.0,0.00023994,2]
[315154629,1708893047602,-500.0,0.00023994,2]
[315154630,1708893047610,-500.0,0.00023994,2]
[315154631,1708893047619,-500.0,0.00023994,2]
[315154632,1708893047629,-500.0,0.00023994,2]
[315154633,1708893047639,-1963.53,0.00023994,2]
[315154634,1708893047649,-500.0,0.00023994,2]
[315154635,1708893047659,-500.0,0.00023994,2]
[315154636,1708893047669,-500.0,0.00023994,2]
[315154637,1708893047679,-500.0,0.00023994,2]
[315154638,1708893047689,-500.0,0.00023994,2]
[315154639,1708893047698,-500.0,0.00023994,2]
[315154640,1708893047707,-8463.15,0.00023994,2]
[315154641,1708893047716,-8463.15,0.00023994,2]
[315154642,1708893047726,-8463.15,0.00023994,2]
[315154643,1708893047735,-500.0,0.00023994,2]
[315154644,1708893047744,-500.0,0.00023994,2]
[315154645,1708893047754,-500.0,0.00023994,2]
[315154646,1708893047763,-1932.11,0.00023994,2]
[315154647,1708893047772,-646.32231314,0.00023994,2]
[315154648,1708893047781,-843.7,0.00023994,2]
[315154649,1708893047790,-843.7,0.00023994,2]
[315154650,1708893047800,-843.7,0.00023994,2]
[315154651,1708893047809,-206.2,0.00023994,2]
[315154652,1708893047818,-1656.58,0.00023994,2]
[315154653,1708893047827,-1656.58,0.00023994,2]
[315154654,1708893047837,-1656.58,0.00023994,2]
[315154655,1708893047847,-500.0,0.00023994,2]
[315154656,1708893047856,-500.0,0.00023994,2]
[315154657,1708893047865,-500.0,0.00023994,2]
[315154658,1708893047874,-500.0,0.00023994,2]
[315154659,1708893047883,-576.9,0.00023994,2]
[315154660,1708893047892,-500.0,0.00023994,2]
[315154661,1708893047901,-389.000117,0.00023994,2]
[315154662,1708893047911,-4807.91,0.00023994,2]
[315154663,1708893047920,-4807.91,0.00023994,2]
[315154664,1708893047928,-4807.91,0.00023994,2]
[315154665,1708893047937,-500.0,0.00023994,2]
[315154666,1708893047946,-500.0,0.00023994,2]
[315154667,1708893047955,-500.0,0.00023994,2]
[315154668,1708893047964,-861.72,0.00023994,2]
[315154669,1708893047973,-861.72,0.00023994,2]
[315154670,1708893047982,-861.72,0.00023994,2]
[315154671,1708893047992,-500.0,0.00023994,2]
[315154672,1708893048001,-500.0,0.00023994,2]
[315154673,1708893048010,-500.0,0.00023994,2]
[315154674,1708893048020,-500.0,0.00023994,2]
[315154675,1708893048029,-500.0,0.00023994,2]
[315154676,1708893048038,-350.30368171,0.00023994,2]
[315154677,1708893048047,-500.0,0.00023994,2]
[315154678,1708893048057,-313.73994351,0.00023994,2]
[315154679,1708893048066,-447.23045773,0.00023994,2]
[315154680,1708893048075,-500.0,0.00023994,2]
[315154681,1708893048084,-500.0,0.00023994,2]
[315154682,1708893048094,-500.0,0.00023994,2]
[315154683,1708893048103,-147348.82139153,0.00023995,4]
[315154684,1708893048112,-195624.2089831,0.00023995,2]
[315154685,1708893048121,-3774.0908299,0.00023995,2]
[315154686,1708893048130,-11185.686528,0.00023995,2]
[315154687,1708893048139,-500.0,0.00023997,2]
[315154688,1708893048148,-645.68,0.00023997,2]
[315154689,1708893048157,-500.0,0.00023997,2]
[315154690,1708893048166,-500.0,0.00023997,2]
[315154691,1708893048175,-696.07,0.00023997,2]
[315154692,1708893048185,-500.0,0.00023997,2]
[315154693,1708893048194,-684.71,0.00023997,2]
[315154694,1708893048203,-500.0,0.00023997,2]
[315154695,1708893048212,-500.0,0.00023997,2]
[315154696,1708893048221,-781.86,0.00023997,2]
[315154697,1708893048230,-500.0,0.00023997,2]
[315154698,1708893048239,-560.92,0.00023997,2]
[315154699,1708893048248,-500.0,0.00023997,2]
[315154700,1708893048257,-500.0,0.00023997,2]
[315154701,1708893048266,-1187.42,0.00023997,2]
[315154702,1708893048275,-500.0,0.00023997,2]
[315154703,1708893048285,-235.86056091,0.00023997,2]
[315154704,1708893048297,-500.0,0.00023997,2]
[315154705,1708893048306,-547.74,0.00023997,2]
[315154706,1708893048316,-500.0,0.00023997,2]
[315154707,1708893048326,-1097.5,0.00023997,2]
[315154708,1708893048335,-534.65,0.00023997,2]
[315154709,1708893048345,-500.0,0.00023997,2]
[315154710,1708893048354,-500.0,0.00023997,2]
[315154711,1708893048364,-2337.15,0.00023997,2]
[315154712,1708893048374,-556.09,0.00023997,2]
[315154713,1708893048386,-500.0,0.00023997,2]
[315154714,1708893048395,-500.0,0.00023997,2]
[315154715,1708893048405,-8463.15,0.00023997,2]
[315154716,1708893048414,-500.0,0.00023997,2]
[315154717,1708893048423,-1656.58,0.00023997,2]
[315154718,1708893048433,-500.0,0.00023997,2]
[315154719,1708893048442,-500.0,0.00023997,2]
[315154720,1708893048451,-861.72,0.00023997,2]
[315154721,1708893048460,-500.0,0.00023998,2]
[315154722,1708893048470,-500.0,0.00023998,2]
[315154723,1708893048480,-500.0,0.00023998,2]
[315154724,1708893048489,-500.0,0.00023998,2]
[315154725,1708893048499,-500.0,0.00023998,2]
[315154726,1708893048509,-500.0,0.00023998,2]
[315154727,1708893048518,-500.0,0.00023998,2]
[315154728,1708893048527,-500.0,0.00023998,2]
[315154729,1708893048536,-300.0,0.00023998,2]
[315154730,1708893048546,-500.0,0.00023998,2]
[315154731,1708893048555,-500.0,0.00023998,2]
[315154732,1708893048564,-500.0,0.00023998,2]
[315154733,1708893048573,-159.63366767,0.00023998,2]
[315154734,1708893048583,-677.97,0.00023998,2]
[315154735,1708893048592,-500.0,0.00023998,2]
[315154736,1708893048601,-501.05,0.00023998,2]
[315154737,1708893048611,-500.0,0.00023998,2]
[315154738,1708893048620,-500.0,0.00023998,2]
[315154739,1708893048630,-500.0,0.00023998,2]
[315154740,1708893048639,-500.0,0.00023998,2]
[315154741,1708893048649,-500.0,0.00023998,2]
[315154742,1708893048659,-696.07,0.00023998,2]
[315154743,1708893048669,-696.07,0.00023998,2]
[315154744,1708893048679,-500.0,0.00023998,2]
[315154745,1708893048689,-500.0,0.00023998,2]
[315154746,1708893048699,-500.0,0.00023998,2]
[315154747,1708893048709,-500.0,0.00023998,2]
[315154748,1708893048718,-500.0,0.00023998,2]
[315154749,1708893048728,-500.0,0.00023998,2]
[315154750,1708893048738,-500.0,0.00023998,2]
[315154751,1708893048748,-684.71,0.00023998,2]
[315154752,1708893048758,-684.71,0.00023998,2]
[315154753,1708893048768,-500.0,0.00023998,2]
[315154754,1708893048778,-804.01,0.00023998,2]
[315154755,1708893048789,-804.01,0.00023998,2]
[315154756,1708893048799,-804.01,0.00023998,2]
[315154757,1708893048809,-804.01,0.00023998,2]
[315154758,1708893048819,-500.0,0.00023998,2]
[315154759,1708893048994,-500.0,0.00023998,2]
[315154760,1708893049004,-500.0,0.00023998,2]
[315154761,1708893049014,-500.0,0.00023998,2]
[315154762,1708893049023,-1816.79,0.00023998,2]